bitfinex-derivatives/quotes_BNBF0:USTF0_20250807
["timestamp","ask_amount","ask_price","bid_price","bid_amount"]
[1754574560520,0.947,774.44,774.14,0.86615693]
[1754574560820,0.947,774.44,774.13,0.86615693]
[1754574561220,0.947,774.44,774.15,0.86615693]
[1754574561417,0.947,774.44,774.14,0.86615693]
[1754574561620,0.947,774.44,774.15,0.86615693]
[1754574562220,0.947,774.44,774.14,0.86615693]
[1754574562418,0.947,774.44,774.15,0.86615693]
[1754574562615,0.947,774.44,774.14,0.86615693]
[1754574563521,0.947,774.44,774.15,0.86615693]
[1754574563920,0.947,774.44,774.14,0.86615693]
[1754574564119,0.947,774.44,774.15,0.86615693]
[1754574564322,0.947,774.44,774.16,0.86615693]
[1754574564522,0.947,774.44,774.15,0.86615693]
[1754574564818,0.947,774.44,774.16,0.86615693]
[1754574565922,0.947,774.44,774.17,0.86615693]
[1754574566123,0.947,774.44,774.18,0.86615693]
[1754574566323,0.947,774.44,774.17,0.86615693]
[1754574566523,0.947,774.44,774.18,0.86615693]
[1754574566823,0.947,774.44,774.02,1.14721409]
[1754574566824,0.947,774.44,774.13,0.86615693]
[1754574567022,0.947,774.44,774.14,0.86615693]
[1754574567419,0.913,774.43,774.17,0.86615693]
[1754574567822,0.913,774.43,774.16,0.86615693]
[1754574568420,0.913,774.43,774.15,0.86615693]
[1754574569426,0.913,774.43,774.16,0.86615693]
[1754574570723,0.913,774.43,774.15,0.86615693]
[1754574571125,0.913,774.43,774.14,0.86615693]
[1754574571426,0.913,774.43,774.15,0.86615693]
[1754574571922,0.913,774.43,773.69,0.22473579]
[1754574571923,0.913,774.43,774.14,0.86615693]
[1754574572122,0.913,774.43,774.15,0.86615693]
[1754574573323,0.913,774.43,774.05,0.86615693]
[1754574575023,0.913,774.43,774.06,0.86615693]
[1754574575526,0.913,774.43,774.08,0.86615693]
[1754574576029,0.913,774.43,774.09,0.86615693]
[1754574576225,0.913,774.43,774.1,0.86615693]
[1754574576424,0.913,774.43,774.11,0.86615693]
[1754574576628,0.913,774.43,774.1,0.86615693]
[1754574577227,0.913,774.43,774.12,0.86615693]
[1754574578628,0.913,774.43,774.13,0.86615693]
[1754574580735,0.913,774.43,774.17,0.86615693]
[1754574581334,0.913,774.43,774.28,0.86615693]
[1754574582536,0.913,774.43,774.29,0.86615693]
[1754574584234,0.913,774.43,774.32,0.86615693]
[1754574585539,0.913,774.43,774.31,0.86615693]
[1754574585737,0.913,774.43,774.32,0.86615693]
[1754574586136,0.913,774.43,774.3,0.86615693]
[1754574586337,0.913,774.43,774.31,0.86615693]
[1754574586938,0.913,774.43,774.3,0.86615693]
[1754574587239,0.913,774.43,774.35,0.86615693]
[1754574587437,0.913,774.43,774.4,0.86615693]
[1754574587940,0.913,774.43,774.25,1.14721409]
[1754574588542,0.913,774.43,774.26,1.14721409]
[1754574588743,0.913,774.43,774.27,1.14721409]
[1754574589045,0.913,774.43,774.28,1.14721409]
[1754574589445,0.913,774.43,774.29,1.14721409]
[1754574590346,0.913,774.43,774.32,1.14721409]
[1754574590646,0.913,774.43,774.34,1.14721409]
[1754574590848,0.913,774.43,774.35,1.14721409]
[1754574591148,0.913,774.43,774.36,1.14721409]
[1754574591343,0.913,774.43,774.42,1.14721409]
[1754574591549,0.913,774.43,774.41,1.14721409]
[1754574592047,0.913,774.43,774.42,1.14721409]
[1754574592447,0.913,774.43,774.25,1.7319066]
[1754574592642,0.913,774.43,774.41,1.1502875]
[1754574593346,0.913,774.43,774.42,1.1502875]
[1754574593546,0.913,774.43,774.41,1.1502875]
[1754574594048,0.913,774.43,774.28,1.7319066]
[1754574594448,0.913,774.43,774.29,1.7319066]
[1754574594949,0.913,774.43,774.32,1.7319066]
[1754574595344,0.913,774.43,774.34,1.7319066]
[1754574595642,0.913,774.43,774.33,1.7319066]
[1754574596344,0.913,774.43,774.34,1.7319066]
[1754574596542,0.913,774.43,774.33,1.7319066]
[1754574596747,0.913,774.43,774.35,1.7319066]
[1754574596944,1.029,774.5,774.35,1.7319066]
[1754574597248,1.029,774.5,774.38,1.7319066]
[1754574597449,1.029,774.5,774.39,1.7319066]
[1754574597948,1.029,774.5,774.38,1.7319066]
[1754574598350,1.029,774.5,774.39,1.7319066]
[1754574598649,1.029,774.5,774.38,1.7319066]
[1754574598849,1.029,774.5,774.39,1.7319066]
[1754574599350,1.029,774.5,774.4,1.7319066]
[1754574599550,1.029,774.5,774.39,1.7319066]
[1754574601050,1.029,774.5,774.38,1.7319066]
[1754574601852,1.029,774.5,774.4,1.7319066]
[1754574602451,1.029,774.5,774.41,1.7319066]
[1754574603154,1.029,774.5,774.45,1.7319066]
[1754574603452,1.029,774.5,774.47,1.7319066]
[1754574604455,1.029,774.5,774.49,1.7319066]
[1754574605050,1.029,774.5,774.48,1.7319066]
[1754574605256,1.029,774.5,774.4,1.7319066]
[1754574605456,1.029,774.5,774.42,1.7319066]
[1754574606553,1.029,774.5,774.43,1.7319066]
[1754574607158,1.029,774.5,774.44,1.7319066]
[1754574607356,1.029,774.5,774.43,1.7319066]
[1754574607760,1.029,774.5,774.45,1.7319066]
[1754574608458,1.029,774.5,774.44,1.7319066]
[1754574608655,1.029,774.5,773.97,0.22452265]
[1754574609661,0.915,775.22,773.97,0.22452265]
[1754574609857,0.915,775.22,774.92,0.86282097]
[1754574610564,0.915,775.22,774.87,0.86282097]
[1754574611161,0.915,775.22,774.88,0.86282097]
[1754574611557,0.915,775.22,774.87,0.86282097]
[1754574611961,0.86309081,776.03,774.87,0.86282097]
[1754574612259,1.69201359,776.02,774.86,0.86282097]
[1754574612462,0.82892278,776.01,774.88,0.86282097]
[1754574612761,0.86309081,776.07,774.87,0.86282097]
[1754574613063,1.69209184,776.06,774.87,0.86282097]
[1754574613362,0.82900103,776.05,774.85,0.86282097]
[1754574613562,0.82884522,776.04,774.85,0.86282097]
[1754574613759,0.82884522,776.03,774.84,0.86282097]
[1754574613958,0.82884522,776.02,774.84,0.86282097]
[1754574614165,0.82884522,776.01,774.84,0.86282097]
[1754574614358,0.82884522,776.0,774.85,0.86282097]
[1754574614663,0.82884522,775.99,774.85,0.86282097]
[1754574614866,0.82884522,775.98,774.85,0.86282097]
[1754574615064,0.82884522,775.97,774.86,0.86282097]
[1754574615260,0.82884522,775.96,774.86,0.86282097]
[1754574615461,0.82884522,775.95,774.85,0.86282097]
[1754574615663,0.82884522,775.94,774.85,0.86282097]
[1754574615963,0.82884522,775.93,774.85,0.86282097]
[1754574616164,0.82884522,775.92,774.85,0.86282097]
[1754574616361,0.82884522,775.91,774.85,0.86282097]
[1754574616564,0.82884522,775.9,774.85,0.86282097]
[1754574616764,0.82884522,775.89,774.85,0.86282097]
[1754574616961,0.82884522,775.88,774.85,0.86282097]
[1754574617265,0.82884522,775.87,774.82,0.86282097]
[1754574617465,0.82884522,775.86,774.81,0.86282097]
[1754574617765,0.943,775.97,773.97,0.22452265]
[1754574617766,0.82884522,775.85,774.8,0.86282097]
[1754574617963,0.82884522,775.84,774.77,0.86282097]
[1754574618165,0.82884522,775.83,774.77,0.86282097]
[1754574618461,0.82884522,775.82,774.77,0.86282097]
[1754574618663,0.82884522,775.81,774.78,0.86282097]
[1754574618862,0.82884522,775.8,774.78,0.86282097]
[1754574619166,0.943,775.97,774.67,0.86282097]
[1754574619367,0.82675383,775.96,774.67,0.86282097]
[1754574619565,0.82675383,775.95,774.67,0.86282097]
[1754574619766,0.82675383,775.94,774.67,0.86282097]
[1754574619964,0.82675383,775.93,774.67,0.86282097]
[1754574620164,0.82675383,775.92,774.67,0.86282097]
[1754574620364,0.82675383,775.91,774.67,0.86282097]
[1754574620566,0.82675383,775.9,774.67,0.86282097]
[1754574620868,0.82675383,775.89,774.66,0.86282097]
[1754574621065,0.82675383,775.88,774.64,0.86282097]
[1754574621270,0.82675383,775.87,774.63,0.86282097]
[1754574621465,0.82675383,775.86,774.66,0.86282097]
[1754574621670,0.82675383,775.85,774.64,0.86282097]
[1754574621867,0.82675383,775.84,774.64,0.86282097]
[1754574622071,0.86309081,775.93,774.64,0.86282097]
[1754574622273,0.82666332,775.92,774.64,0.86282097]
[1754574622473,0.82666332,775.91,774.64,0.86282097]
[1754574622667,0.86309081,775.92,774.64,0.86282097]
[1754574622869,0.82665045,775.91,774.64,0.86282097]
[1754574623171,0.82665045,775.9,774.64,0.86282097]
[1754574623371,0.82665045,775.89,774.65,0.86282097]
[1754574623570,0.82665045,775.88,774.65,0.86282097]
[1754574623771,0.82665045,775.87,774.65,0.86282097]
[1754574623970,0.82665045,775.86,774.65,0.86282097]
[1754574624170,0.82665045,775.85,774.66,0.86282097]
[1754574624369,0.82665045,775.84,774.67,0.86282097]
[1754574624573,0.82665045,775.83,774.67,0.86282097]
[1754574624770,0.82665045,775.82,774.67,0.86282097]
[1754574625070,0.82665045,775.81,774.67,0.86282097]
[1754574625274,0.82665045,775.8,774.67,0.86282097]
[1754574625475,0.82665045,775.79,774.68,0.86282097]
[1754574625675,0.82665045,775.78,774.68,0.86282097]
[1754574625874,0.82665045,775.77,774.68,0.86282097]
[1754574626075,0.82665045,775.76,774.68,0.86282097]
[1754574626372,0.82665045,775.75,774.68,0.86282097]
[1754574626570,0.86309081,775.92,774.7,0.86282097]
[1754574626775,0.8267379,775.91,774.75,0.86282097]
[1754574626972,0.8267379,775.9,774.75,0.86282097]
[1754574627175,0.8267379,775.89,774.76,0.86282097]
[1754574627373,0.8267379,775.88,774.76,0.86282097]
[1754574627578,0.8267379,775.87,774.75,0.86282097]
[1754574627773,0.8267379,775.86,774.76,0.86282097]
[1754574628073,0.8267379,775.85,774.79,0.86282097]
[1754574628278,0.82674769,775.84,774.8,0.86282097]
[1754574628573,0.82674769,775.84,773.97,0.22452265]
[1754574628574,0.82674769,775.83,774.79,0.86282097]
[1754574628772,0.82674769,775.82,774.79,0.86282097]
[1754574628975,0.82674769,775.81,774.8,0.86282097]
[1754574629174,0.82674769,775.8,774.8,0.86282097]
[1754574629479,0.82674769,775.79,774.81,0.86282097]
[1754574629674,0.82674769,775.78,774.87,0.86282097]
[1754574629974,0.82674769,775.77,774.86,0.86282097]
[1754574630177,0.22447703,776.1,774.9,0.86282097]
[1754574630379,0.82701964,776.09,774.91,0.86282097]
[1754574630580,0.82701964,776.08,774.92,0.86282097]
[1754574630778,0.82701964,776.07,774.95,0.86282097]
[1754574630980,0.82701964,776.06,774.95,0.86282097]
[1754574631180,0.86309081,776.18,774.96,0.86282097]
[1754574631377,0.86309081,776.15,774.98,0.86282097]
[1754574631577,0.82717529,776.13,775.04,0.86282097]
[1754574631777,0.82717529,776.12,775.04,0.86282097]
[1754574631980,0.82717529,776.11,775.04,0.86282097]
[1754574632176,0.82717529,776.1,775.08,0.86282097]
[1754574632381,1.125,776.13,775.14,0.86282097]
[1754574632382,0.82717529,776.09,775.14,0.86282097]
[1754574632582,0.82717529,776.08,775.13,0.86282097]
[1754574632782,0.82717529,776.07,775.17,0.86282097]
[1754574633083,0.82717529,776.06,775.16,0.86282097]
[1754574633278,0.82717529,776.05,775.16,0.86282097]
[1754574633481,0.82717529,776.04,775.16,0.86282097]
[1754574633678,0.82717529,776.03,775.16,0.86282097]
[1754574633876,0.82717529,776.02,775.16,0.86282097]
[1754574634079,0.82717529,776.01,775.16,0.86282097]
[1754574634280,0.82717529,776.0,775.18,0.86282097]
[1754574634583,1.125,776.13,775.17,0.86282097]
[1754574635384,1.125,776.13,774.16,2.886511]
[1754574635385,1.125,776.13,775.23,0.86282097]
[1754574635585,1.125,776.13,775.24,0.86282097]
[1754574635786,1.125,776.13,775.26,0.86282097]
[1754574635986,1.125,776.13,775.33,0.86282097]
[1754574636381,1.125,776.13,775.31,0.86282097]
[1754574636587,1.125,776.13,775.38,0.86282097]
[1754574636887,1.125,776.13,775.41,0.86282097]
[1754574637288,1.125,776.13,775.39,0.86282097]
[1754574637587,1.125,776.13,775.4,0.86282097]
[1754574637788,1.125,776.13,775.38,0.86282097]
[1754574638588,1.125,776.13,775.37,0.86282097]
[1754574638788,1.125,776.13,775.38,0.86282097]
[1754574638984,1.125,776.13,775.37,0.86282097]
[1754574639488,1.125,776.13,775.35,0.86282097]
[1754574640390,1.125,776.13,775.34,0.86282097]
[1754574640689,1.125,776.13,775.33,0.86282097]
[1754574641887,0.82591175,776.12,775.33,0.86282097]
[1754574642091,0.82591175,776.11,775.28,0.86282097]
[1754574642387,0.82591175,776.1,775.28,0.86282097]
[1754574642585,0.82591175,776.09,775.28,0.86282097]
[1754574642788,0.82591175,776.08,775.28,0.86282097]
[1754574642989,0.82591175,776.07,775.28,0.86282097]
[1754574643190,0.82591175,776.06,775.28,0.86282097]
[1754574643487,0.82591175,776.05,775.28,0.86282097]
[1754574643785,0.82591175,776.04,775.28,0.86282097]
[1754574643990,0.82591175,776.03,775.28,0.86282097]
[1754574644188,0.82591175,776.02,775.28,0.86282097]
[1754574644492,0.82591175,776.01,775.28,0.86282097]
[1754574644691,0.82591175,776.0,775.28,0.86282097]
[1754574644887,0.82591175,775.99,775.28,0.86282097]
[1754574645087,0.82591175,775.98,775.28,0.86282097]
[1754574645292,0.82591175,775.97,775.28,0.86282097]
[1754574645592,0.82591175,775.96,775.27,0.86282097]
[1754574645789,0.82591175,775.95,775.27,0.86282097]
[1754574646091,0.82591175,775.94,775.27,0.86282097]
[1754574646389,0.82591175,775.93,775.28,0.86282097]
[1754574646592,0.82591175,775.92,775.28,0.86282097]
[1754574646790,0.82591175,775.91,775.28,0.86282097]
[1754574646989,0.82591175,775.9,775.28,0.86282097]
[1754574647188,1.125,776.13,775.28,0.86282097]
[1754574647389,0.82748576,776.12,775.28,0.86282097]
[1754574647589,0.82748576,776.11,775.28,0.86282097]
[1754574647792,0.82748576,776.1,775.28,0.86282097]
[1754574647991,0.82748576,776.09,775.28,0.86282097]
[1754574648192,0.82748576,776.08,775.28,0.86282097]
[1754574648393,0.82748576,776.07,775.28,0.86282097]
[1754574648588,0.82748576,776.06,775.28,0.86282097]
[1754574648788,0.82748576,776.05,775.28,0.86282097]
[1754574648990,1.125,776.13,775.28,0.86282097]
[1754574649188,0.82742541,776.12,775.28,0.86282097]
[1754574649592,1.125,776.13,775.29,0.86282097]
[1754574650599,1.125,776.13,775.33,0.86282097]
[1754574650999,1.125,776.13,775.35,0.86282097]
[1754574651398,1.125,776.13,775.34,0.86282097]
[1754574652196,1.125,776.13,775.35,0.86282097]
[1754574652896,1.125,776.13,775.34,0.86282097]
[1754574653094,1.125,776.13,775.35,0.86282097]
[1754574653400,1.125,776.13,775.34,0.86282097]
[1754574653596,1.125,776.13,775.31,0.86282097]
[1754574653898,1.125,776.13,775.32,0.86282097]
[1754574654098,1.125,776.13,775.31,0.86282097]
[1754574654297,1.125,776.13,775.34,0.86282097]
[1754574654896,1.125,776.13,775.37,0.86282097]
[1754574655296,1.125,776.13,775.38,0.86282097]
[1754574655796,1.125,776.13,775.4,0.86282097]
[1754574656199,1.125,776.13,775.39,0.86282097]
[1754574656398,1.125,776.13,774.24,2.886511]
[1754574656399,1.125,776.13,775.38,0.86282097]
[1754574656702,1.125,776.13,775.42,0.86282097]
[1754574656997,1.125,776.13,775.43,0.86282097]
[1754574657298,1.125,776.13,775.44,0.86282097]
[1754574657498,1.125,776.13,775.45,0.86282097]
[1754574657897,1.126,776.58,775.45,0.86282097]
[1754574658097,0.82582394,776.57,775.45,0.86282097]
[1754574658297,0.82582394,776.56,775.44,0.86282097]
[1754574658497,1.126,776.58,775.43,0.86282097]
[1754574658702,0.82556248,776.57,775.45,0.86282097]
[1754574658902,0.82556248,776.56,775.45,0.86282097]
[1754574659100,0.82556248,776.55,775.44,0.86282097]
[1754574659402,0.82556248,776.54,775.44,0.86282097]
[1754574659600,0.82556248,776.53,775.44,0.86282097]
[1754574659903,1.126,776.58,775.44,0.86282097]
[1754574659904,0.82556248,776.52,775.44,0.86282097]
[1754574660099,0.82556248,776.51,775.44,0.86282097]
[1754574660298,0.82556248,776.5,775.43,0.86282097]
[1754574660500,0.82556248,776.49,775.43,0.86282097]
[1754574660700,0.82556248,776.48,775.43,0.86282097]
[1754574660899,1.126,776.58,775.38,0.86282097]
[1754574661103,0.82535423,776.57,775.38,0.86282097]
[1754574661302,0.82535423,776.56,775.37,0.86282097]
[1754574661505,0.82535423,776.55,775.38,0.86282097]
[1754574661706,0.82535423,776.54,775.37,0.86282097]
[1754574661999,0.82535423,776.53,775.37,0.86282097]
[1754574662206,0.82535423,776.52,775.37,0.86282097]
[1754574662502,0.82535423,776.51,775.37,0.86282097]
[1754574662705,1.126,776.58,775.37,0.86282097]
[1754574663002,0.8250119,776.57,775.37,0.86282097]
[1754574663300,0.8250119,776.56,775.37,0.86282097]
[1754574663604,0.8250119,776.55,775.37,0.86282097]
[1754574663801,0.8250119,776.54,775.37,0.86282097]
[1754574664100,0.8250119,776.53,775.37,0.86282097]
[1754574664303,0.8250119,776.52,775.37,0.86282097]
[1754574664503,0.8250119,776.51,775.37,0.86282097]
[1754574664703,1.126,776.58,775.37,0.86282097]
[1754574664902,0.82479306,776.57,775.37,0.86282097]
[1754574665101,0.82479306,776.56,775.37,0.86282097]
[1754574665305,0.82479306,776.55,775.38,0.86282097]
[1754574665505,1.126,776.58,775.4,0.86282097]
[1754574665701,0.82470031,776.57,775.4,0.86282097]
[1754574665904,0.82470031,776.56,775.39,0.86282097]
[1754574666107,0.82470031,776.55,775.39,0.86282097]
[1754574666306,0.82470031,776.54,775.39,0.86282097]
[1754574666507,1.126,776.58,775.39,0.86282097]
[1754574666709,0.82458908,776.57,775.44,0.86282097]
[1754574667008,0.82458908,776.56,775.41,0.86282097]
[1754574667205,0.82483619,776.55,775.21,0.86282097]
[1754574667503,0.82483619,776.54,775.21,0.86282097]
[1754574667805,1.126,776.58,775.22,0.86282097]
[1754574667806,0.82483619,776.53,775.22,0.86282097]
[1754574668007,0.82483619,776.52,775.22,0.86282097]
[1754574668208,0.82483619,776.51,775.21,0.86282097]
[1754574668408,0.82483619,776.5,775.22,0.86282097]
[1754574668711,0.82483619,776.49,775.21,0.86282097]
[1754574668908,0.82483619,776.48,775.21,0.86282097]
[1754574669208,0.82483619,776.47,775.28,0.86282097]
[1754574669508,0.82483619,776.46,775.28,0.86282097]
[1754574669708,0.82483619,776.45,775.29,0.86282097]
[1754574669905,0.82483619,776.44,775.28,0.86282097]
[1754574670104,1.126,776.58,775.25,0.86282097]
[1754574670407,0.82475359,776.57,775.26,0.86282097]
[1754574670706,0.82475359,776.56,775.26,0.86282097]
[1754574670905,0.82475359,776.55,775.36,0.86282097]
[1754574671204,1.126,776.58,775.39,0.86282097]
[1754574671404,0.82465628,776.57,775.39,0.86282097]
[1754574671604,0.82465628,776.56,775.4,0.86282097]
[1754574671805,0.82465628,776.55,775.4,0.86282097]
[1754574672008,0.82465628,776.54,775.39,0.86282097]
[1754574672308,1.126,776.58,775.39,0.86282097]
[1754574672505,0.82460724,776.57,775.4,0.86282097]
[1754574672703,0.82460724,776.56,775.4,0.86282097]
[1754574672907,0.82460724,776.55,775.4,0.86282097]
[1754574673104,1.126,776.58,775.39,0.86282097]
[1754574673307,0.82454784,776.57,775.39,0.86282097]
[1754574673504,0.82454784,776.56,775.38,0.86282097]
[1754574673705,1.126,776.58,775.38,0.86282097]
[1754574673907,1.126,776.58,775.41,0.86282097]
[1754574674309,1.126,776.58,775.46,0.86282097]
[1754574674905,1.126,776.58,775.47,0.86282097]
[1754574675405,1.126,776.58,775.49,0.86282097]
[1754574675809,1.126,776.58,774.11,2.886511]
[1754574675810,1.126,776.58,775.53,0.86282097]
[1754574676409,1.126,776.58,775.54,0.86282097]
[1754574677106,1.126,776.58,775.56,0.86282097]
[1754574678511,0.2241452,776.89,775.56,0.86282097]
[1754574678713,0.82377905,776.88,775.58,0.86282097]
[1754574678912,0.82377905,776.87,775.58,0.86282097]
[1754574679113,0.82377905,776.86,775.58,0.86282097]
[1754574679313,0.82377905,776.85,775.58,0.86282097]
[1754574679514,0.82377905,776.84,775.59,0.86282097]
[1754574679713,0.82377905,776.83,775.59,0.86282097]
[1754574679916,0.82377905,776.82,775.59,0.86282097]
[1754574680116,0.82377905,776.81,775.59,0.86282097]
[1754574680413,0.82377905,776.8,775.61,0.86282097]
[1754574680613,0.82377905,776.79,775.61,0.86282097]
[1754574680813,0.82377905,776.78,775.61,0.86282097]
[1754574681013,0.82377905,776.77,775.61,0.86282097]
[1754574681217,0.82377905,776.76,775.61,0.86282097]
[1754574681418,0.82377905,776.75,775.63,0.86282097]
[1754574681619,0.82377905,776.74,775.63,0.86282097]
[1754574681819,0.9,776.8,775.63,0.86282097]
[1754574682020,0.82353753,776.79,775.63,0.86282097]
[1754574682319,0.82353753,776.78,775.63,0.86282097]
[1754574682521,0.82353753,776.77,775.64,0.86282097]
[1754574682822,0.82353753,776.77,774.18,4.0411154]
[1754574682823,0.82353753,776.76,775.57,0.86282097]
[1754574683021,0.82353753,776.75,775.57,0.86282097]
[1754574683218,0.9,776.8,775.58,0.86282097]
[1754574683219,0.82353753,776.74,775.58,0.86282097]
[1754574683519,0.82353753,776.73,775.58,0.86282097]
[1754574683724,0.82353753,776.72,775.58,0.86282097]
[1754574683923,0.82353753,776.71,775.55,0.86282097]
[1754574684121,0.82353753,776.7,775.55,0.86282097]
[1754574684324,0.82353753,776.69,775.56,0.86282097]
[1754574684624,0.82353753,776.68,775.59,0.86282097]
[1754574685023,0.82366157,776.67,775.59,0.86282097]
[1754574685221,0.82366157,776.66,775.59,0.86282097]
[1754574685425,0.82366157,776.65,775.61,0.86282097]
[1754574685623,0.82366157,776.64,775.61,0.86282097]
[1754574685823,0.82366157,776.63,775.61,0.86282097]
[1754574686022,0.82366157,776.62,775.61,0.86282097]
[1754574686223,0.82366157,776.61,775.61,0.86282097]
[1754574686426,0.82366157,776.6,775.61,0.86282097]
[1754574686723,0.82366157,776.59,775.63,0.86282097]
[1754574686924,0.86309081,776.79,775.63,0.86282097]
[1754574687127,0.82389983,776.78,775.64,0.86282097]
[1754574687327,0.86309081,776.76,775.65,0.86282097]
[1754574687524,1.68699064,776.75,775.65,0.86282097]
[1754574687722,0.82389983,776.74,775.65,0.86282097]
[1754574688124,0.82389983,776.74,775.66,0.86282097]
[1754574688326,0.86309081,776.72,775.68,0.86282097]
[1754574688524,0.82389983,776.71,775.69,0.86282097]
[1754574688729,0.82389983,776.7,775.71,0.86282097]
[1754574688924,0.82389983,776.69,775.7,0.86282097]
[1754574689229,0.82389983,776.68,775.7,0.86282097]
[1754574689429,0.82389983,776.67,775.72,0.86282097]
[1754574689730,0.82389983,776.66,775.74,0.86282097]
[1754574690525,0.86309081,776.65,775.76,0.86282097]
[1754574690730,1.68699064,776.64,775.75,0.86282097]
[1754574690924,0.82389983,776.63,775.76,0.86282097]
[1754574691125,0.82389983,776.64,775.76,0.86282097]
[1754574691429,1.68699064,776.63,775.78,0.86282097]
[1754574691623,0.86309081,776.66,775.76,0.86282097]
[1754574691825,0.82514897,776.65,775.76,0.86282097]
[1754574692030,0.82514897,776.64,775.76,0.86282097]
[1754574692231,0.86309081,776.66,775.76,0.86282097]
[1754574692426,0.86309081,776.64,775.76,0.86282097]
[1754574692826,0.86309081,776.66,775.75,0.86282097]
[1754574693227,0.86309081,776.67,775.75,0.86282097]
[1754574693427,0.86309081,776.65,775.76,0.86282097]
[1754574694030,0.86309081,776.68,775.8,0.86282097]
[1754574694229,0.86309081,776.69,775.8,0.86282097]
[1754574694429,0.86309081,776.68,775.82,0.86282097]
[1754574695133,0.86309081,776.72,775.85,0.86282097]
[1754574695335,1.68857437,776.71,775.85,0.86282097]
[1754574695529,0.86309081,776.75,775.9,0.86282097]
[1754574695831,1.68857437,776.74,775.89,0.86282097]
[1754574696030,0.82548356,776.73,775.89,0.86282097]
[1754574696233,0.82548356,776.72,775.89,0.86282097]
[1754574696434,0.82548356,776.71,775.89,0.86282097]
[1754574696632,0.86309081,776.74,775.89,0.86282097]
[1754574696928,0.82537816,776.73,775.89,0.86282097]
[1754574697130,0.82537816,776.72,775.89,0.86282097]
[1754574697330,0.82537816,776.71,775.89,0.86282097]
[1754574697530,0.684,776.72,775.89,0.86282097]
[1754574697731,0.82528302,776.71,775.89,0.86282097]
[1754574697933,0.684,776.72,775.89,0.86282097]
[1754574698231,0.82528302,776.71,775.88,0.86282097]
[1754574698435,0.684,776.72,775.88,0.86282097]
[1754574698631,0.82519394,776.71,775.88,0.86282097]
[1754574698835,0.684,776.72,775.88,0.86282097]
[1754574699536,0.82511023,776.71,775.9,0.86282097]
[1754574699832,0.82511023,776.7,775.9,0.86282097]
[1754574700036,1.54709081,776.72,775.9,0.86282097]
[1754574700233,0.82510142,776.71,775.89,0.86282097]
[1754574700437,0.82510142,776.7,775.89,0.86282097]
[1754574700637,0.684,776.72,775.9,0.86282097]
[1754574700838,0.82507866,776.71,775.89,0.86282097]
[1754574701033,0.82507866,776.7,775.89,0.86282097]
[1754574701335,0.684,776.72,775.89,0.86282097]
[1754574701635,0.684,776.72,775.86,0.86282097]
[1754574702233,0.82548277,776.71,775.86,0.86282097]
[1754574702434,0.684,776.72,775.86,0.86282097]
[1754574702638,0.82548588,776.71,775.87,0.86282097]
[1754574702935,0.684,776.72,775.87,0.86282097]
[1754574703137,0.82548277,776.71,775.87,0.86282097]
[1754574703339,0.684,776.72,775.87,0.86282097]
[1754574703544,0.82598527,776.71,775.87,0.86282097]
[1754574703741,0.82598527,776.7,775.87,0.86282097]
[1754574703944,0.684,776.72,775.87,0.86282097]
[1754574704245,0.82598527,776.71,775.87,0.86282097]
[1754574704443,0.82598527,776.7,775.87,0.86282097]
[1754574704740,0.684,776.72,775.86,0.86282097]
[1754574704741,0.82598527,776.69,775.86,0.86282097]
[1754574704941,0.82598527,776.68,775.86,0.86282097]
[1754574705147,0.82598527,776.67,775.84,0.86282097]
[1754574705343,0.82598527,776.66,775.84,0.86282097]
[1754574705547,0.684,776.72,775.84,0.86282097]
[1754574705749,0.82708976,776.71,775.84,0.86282097]
[1754574705944,0.82708976,776.7,775.84,0.86282097]
[1754574706143,0.82708976,776.69,775.84,0.86282097]
[1754574706346,0.82708976,776.68,775.84,0.86282097]
[1754574706548,0.82708976,776.67,775.83,0.86282097]
[1754574706745,0.86309081,776.65,775.76,0.86282097]
[1754574706953,1.69018057,776.64,775.75,0.86282097]
[1754574707153,1.69018057,776.64,775.39,1.72564195]
[1754574707154,0.86309081,776.62,775.73,0.86282097]
[1754574707459,0.86309081,776.6,775.74,0.86282097]
[1754574707660,1.69018057,776.59,775.75,0.86282097]
[1754574707856,0.82708976,776.58,775.75,0.86282097]
[1754574708058,1.69018057,776.58,775.75,0.86282097]
[1754574708259,0.82708976,776.57,775.75,0.86282097]
[1754574709455,1.69018057,776.57,775.76,0.86282097]
[1754574709659,0.82708976,776.56,775.76,0.86282097]
[1754574709959,0.82708976,776.56,775.75,0.86282097]
[1754574710158,0.684,776.72,775.75,0.86282097]
[1754574710159,0.82708976,776.55,775.75,0.86282097]
[1754574710355,0.82708976,776.54,775.75,0.86282097]
[1754574710554,0.82708976,776.53,775.75,0.86282097]